bitfinex/quotes_SOLUSD_20240821
["timestamp","ask_amount","ask_price","bid_price","bid_amount"]
[1724254901038,14.52884479,140.79,140.75,7.1046]
[1724254902041,7.42594479,140.79,140.76,7.1042]
[1724254903433,7.42594479,140.79,140.75,17.7617]
[1724254903730,7.42594479,140.79,140.76,7.1041]
[1724254905036,7.42594479,140.79,140.75,24.8664]
[1724254907036,14.52904479,140.79,140.75,17.7617]
[1724254908131,7.1033,140.78,140.75,17.7617]
[1724254908441,7.1033,140.78,140.74,7.1048]
[1724254908442,7.1038,140.77,140.73,7.1057]
[1724254911334,7.42594479,140.79,140.72,40.8732]
[1724254911335,7.1044,140.76,140.72,40.8732]
[1724254911746,7.1039,140.77,140.73,7.1057]
[1724254912946,7.42594479,140.79,140.72,40.8733]
[1724254913271,7.1039,140.77,140.73,7.1056]
[1724254913427,7.1034,140.78,140.74,7.1049]
[1724254914529,14.52884479,140.79,140.74,7.1049]
[1724254915069,7.42594479,140.79,140.75,7.1047]
[1724254915424,7.42594479,140.79,140.76,7.1042]
[1724254915720,17.7517,140.84,140.71,35.532]
[1724254915721,7.1001,140.85,140.8,7.102]
[1724254915920,7.3360259,140.87,140.81,17.7539]
[1724254916138,0.8209259,140.87,140.81,17.7539]
[1724254916639,0.8209259,140.87,140.83,7.1003]
[1724254917418,7.9196259,140.87,140.83,7.1003]
[1724254917838,7.9196259,140.87,140.82,7.1012]
[1724254918320,0.8209259,140.87,140.83,7.1006]
[1724254918531,0.8209259,140.87,140.83,17.7512]
[1724254919729,0.8209259,140.87,140.83,19.1705593]
[1724254919928,0.8209259,140.87,140.84,7.1001]
[1724254920652,0.8209259,140.87,140.83,24.8518]
[1724254920861,7.9196259,140.87,140.83,17.7512]
[1724254921835,0.8209259,140.87,140.83,24.8518]
[1724254923259,7.9196259,140.87,140.83,24.8518]
[1724254923747,0.8209259,140.87,140.83,24.8518]
[1724254924454,7.1001,140.85,140.8,17.7552]
[1724254924629,7.1001,140.85,140.8,24.8571]
[1724254926162,7.1001,140.85,140.81,7.1016]
[1724254926455,7.0993,140.86,140.81,7.1016]
[1724254927439,0.8209259,140.87,140.8,17.7552]
[1724254927626,7.1006,140.84,140.8,17.7552]
[1724254927838,8.63211415,140.83,140.79,7.1027]
[1724254928057,7.1007,140.83,140.79,7.1027]
[1724254929144,6.592,140.86,140.79,17.7564]
[1724254929349,20.0,140.85,140.79,17.7564]
[1724254929722,27.0998,140.85,140.8,7.1021]
[1724254930140,7.1002,140.84,140.79,24.859]
[1724254931961,7.1002,140.84,140.8,7.1021]
[1724254932160,0.8209259,140.87,140.79,17.7564]
[1724254932377,18.5682259,140.87,140.79,24.8591]
[1724254932535,20.0,140.86,140.79,24.8591]
[1724254933241,7.1006,140.84,140.79,24.8591]
[1724254934864,7.1008,140.83,140.79,24.8591]
[1724254935541,7.1004,140.84,140.79,24.8591]
[1724254935939,27.0995,140.86,140.81,17.7535]
[1724254936866,27.0995,140.86,140.82,7.1009]
[1724254937364,27.0995,140.86,140.81,24.8551]
[1724254940569,27.0995,140.86,140.82,7.1011]
[1724254940745,20.0,140.86,140.81,17.7535]
[1724254940954,20.0,140.86,140.83,7.1005]
[1724254941255,0.8209259,140.87,140.83,7.1005]
[1724254941853,0.8209259,140.87,140.82,7.1011]
[1724254942170,7.0999,140.85,140.81,24.855]
[1724254942546,7.0994,140.86,140.81,24.855]
[1724254943069,7.0994,140.86,140.82,7.1011]
[1724254943971,0.8209259,140.87,140.81,17.7535]
[1724254944156,2.35234005,140.87,140.81,17.7535]
[1724254944359,7.0993,140.86,140.82,7.1011]
[1724254946472,7.0998,140.85,140.81,24.8552]
[1724254947373,7.0993,140.86,140.81,24.8552]
[1724254947743,2.35234005,140.87,140.78,32.8265]
[1724254947744,1.53141415,140.85,140.78,32.8265]
[1724254947980,7.1023,140.8,140.75,24.8656]
[1724254948460,1.53141415,140.79,140.75,24.8656]
[1724254948649,8.63421415,140.79,140.75,17.761]
[1724254948848,31.76697109,140.84,140.72,17.7651]
[1724254948849,7.1042,140.76,140.72,17.7651]
[1724254949072,17.7545,140.81,140.72,17.7651]
[1724254949255,17.7612,140.76,140.68,0.14725858]
[1724254949447,7.1074,140.7,140.68,0.14725858]
[1724254949954,7.1065,140.72,140.68,0.14725858]
[1724254950142,28.63821415,140.71,140.68,0.14725858]
[1724254950652,20.0,140.71,140.68,0.14725858]
[1724254950843,20.0,140.72,140.68,0.14725858]
[1724254951681,20.0,140.72,140.68,7.25505858]
[1724254951979,20.0,140.73,140.68,7.25505858]
[1724254953040,27.1061,140.73,140.68,7.25505858]
[1724254953245,7.1063,140.72,140.68,0.14725858]
[1724254953552,20.0,140.71,140.68,0.14725858]
[1724254953850,20.0,140.71,140.67,7.1086]
[1724254955456,1.53141415,140.7,140.66,17.7723]
[1724254955848,27.1072,140.71,140.66,17.7723]
[1724254956464,7.1073,140.7,140.66,17.7723]
[1724254956990,8.63871415,140.7,140.66,17.7723]
[1724254957280,6.6129,140.68,140.58,15.7876]
[1724254957480,1.53141415,140.67,140.58,15.7876]
[1724254957692,65.0,140.67,140.62,7.1111]
[1724254957854,65.0,140.67,140.61,17.7793]
[1724254958177,7.1094,140.66,140.61,17.7793]
[1724254958371,20.0,140.65,140.61,17.7793]
[1724254959077,20.0,140.65,140.61,24.891]
[1724254959579,27.1088,140.67,140.61,24.891]
[1724254959876,7.1095,140.66,140.61,17.7793]
[1724254960063,20.0,140.65,140.61,17.7793]
[1724254960477,20.0,140.65,140.61,24.8907]
[1724254960781,7.1094,140.66,140.61,24.8907]
[1724254962369,7.1088,140.67,140.61,24.8907]
[1724254962565,20.0,140.66,140.61,24.8907]
[1724254962883,20.0,140.69,140.63,7.1106]
[1724254962884,27.1082,140.69,140.63,7.1106]
[1724254963055,7.1084,140.68,140.63,7.1106]
[1724254963377,20.0,140.67,140.63,7.1106]
[1724254963678,14.52359183,140.7,140.64,22.1923]
[1724254963891,20.0,140.69,140.65,7.1097]
[1724254964256,7.1067,140.72,140.66,7.1092]
[1724254964674,7.1067,140.72,140.67,7.1087]
[1724254965282,1.53141415,140.73,140.66,7.1093]
[1724254965582,7.107,140.71,140.66,7.1093]
[1724254965967,7.1064,140.72,140.66,7.1093]
[1724254966568,20.0,140.71,140.66,7.1093]
[1724254968782,27.1068,140.71,140.66,7.1093]
[1724254969893,20.0,140.71,140.67,7.1087]
[1724254970092,7.41244319,140.74,140.67,17.7713]
[1724254970393,17.7586,140.78,140.65,33.98]
[1724254970577,25.1698748,140.78,140.66,61.75879]
[1724254971372,7.1051,140.75,140.7,7.1072]
[1724254972270,20.0,140.74,140.7,7.1072]
[1724254973083,27.1053,140.74,140.69,17.7689]
[1724254973386,7.1058,140.73,140.69,17.7689]
[1724254975078,27.1054,140.74,140.69,24.8766]
[1724254976102,20.0,140.74,140.7,7.107]
[1724254976595,20.0,140.74,140.71,7.1067]
[1724254979010,20.0,140.74,140.7,7.1071]
[1724254980483,27.1053,140.74,140.7,7.1071]
[1724254981281,7.1058,140.73,140.69,24.8766]
[1724254981695,27.1056,140.74,140.69,24.8766]
[1724254982001,7.1048,140.75,140.7,7.1071]
[1724254982207,20.0,140.74,140.7,7.1071]
[1724254982985,7.1042,140.77,140.72,7.1063]
[1724254983192,20.0,140.76,140.73,7.1056]
[1724254983403,7.41601723,140.78,140.72,7.1061]
[1724254983404,27.104,140.77,140.72,7.1061]
[1724254983711,7.1043,140.76,140.72,7.1061]
[1724254985187,7.1038,140.77,140.72,7.1061]
[1724254985387,7.41601723,140.78,140.73,17.764]
[1724254985599,259.7,140.8,140.74,7.1048]
[1724254985600,20.0,140.77,140.74,7.1048]
[1724254985803,20.0,140.77,140.73,24.8697]
[1724254986211,21.53141415,140.79,140.73,24.8697]
[1724254986713,20.0,140.79,140.73,24.8697]
[1724254987021,7.1039,140.77,140.73,24.8697]
[1724254987822,7.1033,140.78,140.73,24.8697]
[1724254988004,20.0,140.77,140.73,24.8697]
[1724254988201,20.0,140.77,140.74,7.1052]
[1724254989293,20.0,140.77,140.73,17.764]
[1724254989494,7.1032,140.78,140.74,7.1051]
[1724254989695,7.1029,140.79,140.74,7.1051]
[1724254989920,7.41081353,140.82,140.76,16.635]
[1724254990208,6.6435,140.86,140.76,16.635]
[1724254990416,14.05478077,140.86,140.76,16.635]
[1724254990809,7.1013,140.82,140.78,7.1032]
[1724254991211,7.1008,140.83,140.78,7.1032]
[1724254992708,20.0,140.82,140.78,7.1032]
[1724254993806,7.1003,140.84,140.8,7.1022]
[1724254994704,7.0999,140.85,140.8,7.1022]
[1724254995226,7.0993,140.86,140.81,17.7539]
[1724254995523,27.0998,140.85,140.81,24.8555]
[1724254996526,20.0,140.85,140.81,17.7539]
[1724254996819,7.0997,140.85,140.81,17.7539]
[1724254997030,7.0997,140.85,140.81,24.8556]
[1724254997825,7.0993,140.86,140.81,24.8556]
[1724254998130,7.0993,140.86,140.82,7.1012]
[1724254999030,27.9197259,140.87,140.83,7.1006]
[1724254999325,0.8209259,140.87,140.84,1.41988567]
[1724254999626,0.8209259,140.87,140.84,7.1001]
[1724254999931,0.8209259,140.87,140.83,24.852]
[1724255002313,0.8209259,140.87,140.82,13.4435]
[1724255002314,2.35234005,140.87,140.82,13.4435]
[1724255002506,0.8209259,140.87,140.82,7.1011]
[1724255003025,18.5681259,140.87,140.79,6.6201]
[1724255003229,18.5681259,140.87,140.77,40.5727]
[1724255003230,7.1014,140.82,140.77,40.5727]
[1724255003727,7.1009,140.83,140.79,7.1026]
[1724255004039,7.1002,140.84,140.79,7.1026]
[1724255004227,0.8209259,140.87,140.79,17.7562]
[1724255004536,65.8209259,140.87,140.79,17.7562]
[1724255004734,7.0999,140.85,140.8,7.1021]
[1724255005836,7.1003,140.84,140.8,7.1021]
[1724255006033,65.8209259,140.87,140.77,15.7102]
[1724255006233,7.1016,140.82,140.77,15.7102]
[1724255006442,7.1008,140.83,140.78,7.1032]
[1724255008146,7.1003,140.84,140.79,7.1027]
[1724255008645,7.0998,140.85,140.8,7.1022]
[1724255009433,20.8209259,140.87,140.8,17.7549]
[1724255009722,0.8209259,140.87,140.83,7.1007]
[1724255009932,0.8209259,140.87,140.84,7.1002]
[1724255010952,0.8209259,140.87,140.83,7.1006]
[1724255011321,0.8209259,140.87,140.82,23.7801]
[1724255011830,0.8209259,140.87,140.84,7.1001]
[1724255012025,7.9200259,140.87,140.82,23.7801]
[1724255012341,0.8209259,140.87,140.82,23.7801]
[1724255012847,7.9200259,140.87,140.82,30.8809]
[1724255013353,7.9200259,140.87,140.82,23.7801]
[1724255013354,7.0993,140.86,140.82,23.7801]
[1724255013847,7.9196259,140.87,140.82,24.8536]
[1724255015357,1.53141415,140.86,140.81,22.7453]
[1724255015523,7.0993,140.86,140.81,22.7453]
[1724255015718,7.9196259,140.87,140.81,33.3973]
[1724255016642,7.9196259,140.87,140.82,7.1011]
[1724255020162,0.8209259,140.87,140.81,33.3973]
[1724255020370,1.53141415,140.86,140.81,33.3973]
[1724255020862,0.8209259,140.87,140.78,17.7572]
[1724255021058,1.53141415,140.86,140.78,24.8603]
[1724255021360,1.53141415,140.85,140.78,24.8603]
[1724255021555,7.1009,140.83,140.78,24.8603]
[1724255021939,7.1002,140.84,140.78,17.7572]
[1724255022181,7.0998,140.85,140.81,7.1017]
[1724255022344,7.0993,140.86,140.81,7.1017]
[1724255023731,7.0998,140.85,140.81,7.1017]
[1724255023931,7.0993,140.86,140.81,7.1017]
[1724255024128,7.0993,140.86,140.82,7.1012]
[1724255024337,0.8209259,140.87,140.77,15.0315]
[1724255024642,6.389,140.85,140.75,17.7609]
[1724255024965,1.53141415,140.84,140.75,17.7609]
[1724255025136,21.53141415,140.84,140.75,17.7609]
[1724255025354,21.53141415,140.84,140.77,7.1037]
[1724255025355,7.1008,140.83,140.77,7.1037]
[1724255026360,7.1013,140.82,140.77,7.1037]
[1724255027050,7.1013,140.82,140.76,7.1042]
[1724255027753,21.53141415,140.84,140.76,7.1042]
[1724255027754,7.1018,140.81,140.76,7.1042]
[1724255028572,7.1023,140.8,140.75,24.8656]
[1724255029873,1.53141415,140.83,140.74,15.2224]
[1724255030042,7.1032,140.78,140.74,15.2224]
[1724255030547,1.53141415,140.82,140.74,15.2224]
[1724255030548,7.1041,140.77,140.74,15.2224]
[1724255031056,7.1044,140.76,140.72,17.7655]
[1724255031866,7.1059,140.73,140.69,17.769]
[1724255032161,7.1059,140.73,140.68,7.1082]
[1724255032366,7.1063,140.72,140.67,22.812]
[1724255032667,19.29041415,140.78,140.67,15.7034]
[1724255032668,7.1068,140.71,140.67,15.7034]
[1724255033255,7.1074,140.7,140.66,17.7728]
[1724255034236,7.1069,140.71,140.66,17.7728]
[1724255034962,7.1069,140.71,140.66,24.8819]
[1724255035556,7.1064,140.72,140.66,24.8819]
[1724255036443,7.1064,140.72,140.67,7.1088]
[1724255037652,7.1069,140.71,140.66,24.882]
[1724255038467,7.1069,140.71,140.67,7.1087]
[1724255038856,7.1064,140.72,140.67,7.1087]
[1724255039554,7.1068,140.71,140.67,7.1087]
[1724255040046,7.1056,140.74,140.69,7.1076]
[1724255040367,17.7615,140.76,140.66,17.7728]
[1724255040662,7.1078,140.69,140.65,7.1094]
[1724255041066,7.1074,140.7,140.65,7.1094]
[1724255041441,7.1074,140.7,140.66,7.1093]
[1724255041644,7.1078,140.69,140.63,39.9779]
[1724255041846,7.1074,140.7,140.65,7.1098]
[1724255042070,7.1069,140.71,140.66,7.1091]
[1724255042672,7.1069,140.71,140.67,7.1087]
[1724255043443,7.1063,140.72,140.67,7.1087]
[1724255044723,7.1059,140.73,140.67,17.7714]
[1724255044897,25.17292957,140.77,140.67,17.7714]
[1724255045104,7.1056,140.74,140.69,7.1076]
[1724255045287,7.1058,140.73,140.69,7.1076]
[1724255045594,7.1059,140.73,140.69,7.1076]
[1724255046107,25.17292957,140.77,140.7,7.1071]
[1724255046277,7.1051,140.75,140.7,7.1071]
[1724255046600,7.1043,140.76,140.71,7.1066]
[1724255046973,7.1048,140.75,140.71,7.1066]
[1724255047278,7.41282957,140.77,140.72,7.1063]
[1724255047608,6.592,140.81,140.69,58.5391]
[1724255047777,7.1038,140.77,140.73,17.7638]
[1724255048100,7.1053,140.74,140.7,17.7677]
[1724255048424,17.7576,140.79,140.7,17.7677]
[1724255048599,19.28901415,140.79,140.7,17.7677]
[1724255049197,7.1052,140.75,140.7,24.8749]
[1724255053305,7.1058,140.73,140.69,16.5195]
[1724255053512,7.1058,140.73,140.69,23.6273]
[1724255057399,7.1054,140.74,140.7,7.1073]
[1724255058424,7.1049,140.75,140.71,7.1067]
[1724255058610,7.1049,140.75,140.7,7.1071]
[1724255058909,7.1049,140.75,140.71,7.1065]
[1724255059475,27.41377287,140.78,140.72,7.1062]
[1724255059692,7.41377287,140.78,140.75,7.1047]
[1724255059887,7.1024,140.8,140.75,23.2306]
[1724255060096,7.1018,140.81,140.76,7.1041]
[1724255062689,7.1037,140.78,140.75,16.1259]
[1724255062890,7.41182036,140.83,140.75,16.1259]
[1724255063117,20.0,140.82,140.75,16.1259]
[1724255063297,7.1028,140.79,140.75,16.1259]
[1724255063892,7.1028,140.79,140.75,23.2305]
[1724255064706,7.1023,140.8,140.75,23.2305]
[1724255068324,7.1017,140.82,140.77,7.1033]
[1724255068837,7.1017,140.82,140.78,7.1032]
[1724255069198,7.1018,140.81,140.77,24.8626]
[1724255071417,7.1013,140.82,140.78,7.1032]
[1724255071613,7.1008,140.83,140.78,7.1032]
[1724255072131,7.1012,140.82,140.78,7.1032]
[1724255077901,28.71706645,140.87,140.8,7.1022]
[1724255077902,7.1005,140.84,140.8,7.1022]
[1724255078712,7.1005,140.84,140.81,15.5965]
[1724255082714,7.0998,140.85,140.81,15.5965]
[1724255086219,7.1003,140.84,140.81,15.5965]
[1724255088243,7.0996,140.86,140.82,7.1012]
[1724255089344,7.9197259,140.87,140.83,7.1007]
[1724255093728,0.8209259,140.87,140.86,7.0992]
[1724255094245,0.8209259,140.87,140.86,41.4253]
[1724255094431,25.14586744,140.95,140.87,7.0986]
[1724255094432,7.0963,140.92,140.87,7.0986]
[1724255094744,7.0963,140.92,140.88,1.2986426]
[1724255095045,7.0963,140.92,140.87,7.0986]
[1724255095216,7.0963,140.92,140.88,1.20985413]
[1724255095415,7.0963,140.92,140.87,7.0986]
[1724255095638,7.0963,140.92,140.88,1.41942407]
[1724255095920,7.0963,140.92,140.87,7.0986]
[1724255096945,7.0967,140.91,140.87,7.0986]
[1724255097257,7.0973,140.9,140.86,40.9419]
[1724255097825,7.0977,140.89,140.86,16.578]
[1724255098956,7.0973,140.9,140.86,23.677]
[1724255099121,7.0968,140.91,140.86,23.6771]
[1724255099819,7.0976,140.9,140.86,16.578]
[1724255100015,19.26881415,140.95,140.86,16.578]
[1724255100242,65.0,140.94,140.86,16.578]
[1724255100440,7.098,140.89,140.86,16.578]
[1724255100651,7.0982,140.88,140.86,16.578]
[1724255100938,7.0978,140.89,140.86,16.578]
[1724255101448,7.0974,140.9,140.86,16.578]
[1724255101634,20.0,140.92,140.86,16.578]
[1724255101824,20.0,140.92,140.87,7.0986]
[1724255101825,7.0965,140.92,140.87,7.0986]
[1724255102025,1.53141415,140.93,140.87,7.0986]
[1724255102335,7.0972,140.9,140.86,23.6771]
[1724255102933,20.0,140.95,140.86,16.578]
[1724255102934,7.0983,140.88,140.86,16.578]
[1724255103236,17.7413,140.92,140.86,16.578]
[1724255103439,7.0976,140.9,140.86,16.578]
[1724255103661,7.0978,140.89,140.86,16.578]
[1724255103833,8.62921415,140.89,140.86,16.578]
[1724255104447,7.0978,140.89,140.86,16.578]
[1724255105654,7.0983,140.88,140.86,16.578]
[1724255107132,7.0978,140.89,140.86,16.578]
[1724255107434,7.4162052,140.92,140.86,23.6772]
[1724255107760,7.0974,140.9,140.86,23.6772]
[1724255107929,7.0977,140.89,140.86,16.578]
[1724255108128,7.0983,140.88,140.86,16.578]
[1724255108349,1.53141415,140.87,140.82,22.8027]
[1724255108543,6.4608,140.93,140.82,22.8027]
[1724255108544,7.0997,140.85,140.82,22.8027]
[1724255108732,7.99221415,140.93,140.82,22.8027]
[1724255109048,7.0982,140.88,140.83,17.7518]
[1724255110441,7.0977,140.89,140.83,17.7518]
[1724255110642,20.60183037,140.94,140.82,22.8027]
[1724255110643,25.15287177,140.95,140.86,16.1319]
[1724255110964,7.0965,140.92,140.87,7.0987]
[1724255111257,7.0967,140.91,140.86,23.231]
[1724255111831,7.0973,140.9,140.86,23.231]
[1724255112144,25.15287177,140.95,140.86,16.1319]
[1724255112351,17.7397,140.93,140.86,16.1319]
[1724255112554,21.53141415,140.92,140.86,16.1319]
[1724255112768,45.0,140.91,140.86,16.1319]
[1724255112971,1.53141415,140.9,140.86,16.1319]
[1724255113449,7.0978,140.89,140.86,16.1319]
[1724255114050,45.0,140.91,140.86,16.1319]
[1724255114267,20.0,140.9,140.83,15.8676]
[1724255114453,7.0988,140.87,140.83,15.8676]
[1724255114956,8.63071415,140.86,140.83,15.8676]
[1724255115156,7.0993,140.86,140.83,15.8676]
[1724255116065,7.0988,140.87,140.83,15.8676]
[1724255118776,7.0983,140.88,140.83,15.8676]
[1724255118941,7.0973,140.9,140.85,7.0997]
[1724255119444,7.0973,140.9,140.86,15.8029]
[1724255119642,36.52840114,140.97,140.86,15.8029]
[1724255119643,7.0962,140.92,140.87,7.0987]
[1724255119860,7.0962,140.92,140.87,13.18]
[1724255122678,7.0969,140.91,140.87,13.18]
[1724255123191,7.0969,140.91,140.87,6.0813]
[1724255123559,7.0978,140.89,140.87,6.0813]
[1724255123791,7.0978,140.89,140.86,15.8029]
[1724255124654,17.7398,140.93,140.86,15.8029]
[1724255124882,7.0973,140.9,140.86,15.8029]
[1724255125382,7.0968,140.91,140.86,40.6498]
[1724255126392,7.096,140.93,140.87,6.6515]
[1724255126562,7.0951,140.95,140.9,7.0968]
[1724255126762,27.50877695,140.97,140.9,7.0968]
[1724255127072,7.41350667,140.97,140.9,7.0968]
[1724255127381,7.41350667,140.97,140.89,7.0975]
[1724255127555,7.0957,140.93,140.88,40.2673]
[1724255127758,7.0957,140.93,140.89,7.0976]
[1724255128182,25.14830667,140.97,140.88,40.2674]
[1724255128183,7.0963,140.92,140.88,40.2674]
[1724255128761,7.0957,140.93,140.88,40.2674]
[1724255129697,7.0957,140.93,140.89,7.0976]
[1724255129862,7.0953,140.94,140.89,7.0976]
[1724255130388,7.0953,140.94,140.9,7.0972]
[1724255130575,7.0948,140.95,140.9,7.0972]
[1724255130764,25.14830667,140.97,140.9,7.0972]
[1724255130964,7.0947,140.95,140.88,15.4244]
[1724255131275,17.7312,141.0,140.9,17.7427]
[1724255131472,7.0942,140.96,140.91,7.0965]
[1724255131687,7.0942,140.96,140.92,16.2371]
[1724255132067,7.0948,140.95,140.92,16.2371]
[1724255135382,7.0942,140.96,140.92,16.2371]
[1724255135589,7.0942,140.96,140.92,23.3332]
[1724255135798,7.0938,140.97,140.93,7.0957]
[1724255135975,7.65538645,141.01,140.94,23.59061975]
[1724255136192,0.8209259,141.01,140.94,16.49551975]
[1724255136368,7.0928,140.99,140.95,7.0946]
[1724255137195,7.0923,141.0,140.95,7.0946]
[1724255137400,0.8209259,141.01,140.95,7.0946]
[1724255138476,7.0922,141.0,140.96,7.094]
[1724255138674,7.9127259,141.01,140.97,7.0936]
[1724255138890,0.8209259,141.01,140.98,22.5983]
[1724255139103,0.8209259,141.01,140.99,7.52924843]
[1724255139271,7.9126259,141.01,140.99,6.1118]
[1724255140191,0.8209259,141.01,140.99,6.1118]
[1724255141469,17.7238,141.06,141.0,15.8025]
[1724255141710,20.0,141.05,141.0,15.8025]
[1724255142497,7.0908,141.03,141.0,15.8025]
[1724255142700,7.0913,141.02,141.0,15.8025]
[1724255143385,7.0907,141.03,141.0,15.8025]
[1724255143975,7.0912,141.02,141.0,15.8025]
[1724255144179,7.0916,141.01,141.0,15.8025]
[1724255144502,7.0928,140.99,140.96,16.6628]
[1724255144887,7.0923,141.0,140.96,16.6628]
[1724255145276,7.0927,140.99,140.96,16.6628]
[1724255146191,62.7262,141.04,140.96,16.6628]
[1724255146396,7.0923,141.0,140.96,23.7568]
[1724255146702,7.0928,140.99,140.96,16.6628]
[1724255147201,7.0923,141.0,140.96,16.6628]
[1724255148891,7.0918,141.01,140.96,23.7566]
[1724255149206,7.0929,140.99,140.96,16.6628]
[1724255150096,7.0933,140.98,140.96,16.6628]
[1724255150295,7.0937,140.97,140.96,16.6628]
[1724255150521,7.0953,140.94,140.93,15.6915]
[1724255150878,7.0947,140.95,140.93,15.6915]
[1724255151199,7.0943,140.96,140.93,15.6915]
[1724255151514,7.0948,140.95,140.93,15.6915]
[1724255152405,7.0943,140.96,140.93,15.6915]
[1724255153303,7.0948,140.95,140.93,15.6915]
[1724255153678,17.7319,140.99,140.93,15.6915]
[1724255153679,7.0943,140.96,140.93,15.6915]
[1724255154082,7.41488671,141.01,140.93,15.6915]
[1724255154321,7.0935,140.98,140.93,22.7868]
[1724255154684,20.0,141.0,140.93,22.7868]
[1724255154685,7.0937,140.97,140.93,22.7868]
[1724255155496,7.0932,140.98,140.93,22.7868]
[1724255156605,7.0928,140.99,140.94,7.095]
[1724255156913,7.0932,140.98,140.94,7.095]
[1724255157425,7.0943,140.96,140.93,15.6915]
[1724255157628,7.0933,140.98,140.93,15.6915]
[1724255158430,27.0925,141.0,140.95,7.0942]
[1724255158607,7.0925,141.0,140.96,7.0941]
[1724255159230,7.0911,141.03,140.97,13.4539]
[1724255159535,7.0915,141.02,140.98,15.8695]
[1724255160331,7.0917,141.01,140.98,15.8695]
[1724255160519,25.13987201,141.04,140.98,15.8695]
[1724255160700,7.0922,141.0,140.98,15.8695]
[1724255161101,20.0,141.03,140.98,15.8695]
[1724255161367,7.0912,141.02,140.98,15.8695]
[1724255161625,7.0912,141.02,140.98,22.9626]
[1724255161832,7.0917,141.01,140.98,15.8695]
[1724255162703,7.093,140.99,140.95,15.7908]
[1724255163016,37.7273,141.03,140.95,15.7908]
[1724255163228,37.7273,141.03,140.95,22.8854]
[1724255163819,7.0925,141.0,140.95,22.8854]
[1724255164019,7.0927,140.99,140.95,22.8854]
[1724255164233,37.7273,141.03,140.96,7.0941]
[1724255164234,7.0922,141.0,140.96,7.0941]
[1724255165305,7.0912,141.02,140.96,17.7349]
[1724255165510,7.0912,141.02,140.97,1.07660866]
[1724255165721,7.0912,141.02,140.96,17.7349]
[1724255166128,7.0912,141.02,140.97,7.0935]
[1724255166830,7.0912,141.02,140.98,7.093]
[1724255167043,7.0907,141.03,141.0,16.1074]
[1724255169036,7.0903,141.04,141.0,23.1994]
[1724255169233,7.0898,141.05,141.0,23.1994]
[1724255169421,7.0903,141.04,141.0,23.1994]
[1724255169737,7.0903,141.04,141.0,16.1074]
[1724255170129,7.0903,141.04,141.0,23.1995]
[1724255170642,7.0897,141.05,141.0,23.1995]
[1724255171135,7.41271825,141.08,141.01,7.0913]
[1724255171136,7.0893,141.06,141.01,7.0913]
[1724255171509,7.0897,141.05,141.01,7.0913]
[1724255171711,7.0892,141.06,141.01,7.0913]
[1724255171930,7.0899,141.05,141.01,7.0913]
[1724255172326,7.0893,141.06,141.02,7.0909]
[1724255174230,7.0893,141.06,141.01,7.0915]
[1724255175538,7.0897,141.05,141.0,33.8373]
[1724255176149,17.7198,141.09,141.0,40.929]
[1724255176325,7.0903,141.04,141.0,40.929]
[1724255176679,7.0908,141.03,141.0,16.1074]
[1724255176852,7.0912,141.02,141.0,16.1074]
[1724255177356,17.7245,141.05,140.97,15.6484]
[1724255177526,7.0912,141.02,140.97,15.6484]
[1724255177846,7.0912,141.02,140.98,7.0928]
[1724255178042,7.0917,141.01,140.97,22.742]
[1724255178551,7.0925,141.0,140.97,15.6484]
[1724255178846,7.0918,141.01,140.97,15.6484]
[1724255179832,7.0918,141.01,140.97,22.7418]
[1724255180765,7.0918,141.01,140.97,15.6484]